fUSD/lending_fUSD_20250525
["ID","MTS","AMOUNT","RATE_DAILY","PERIOD"]
[362285571,1748157045239,-2029.82,0.00019999,2]
[362285572,1748157045248,-2029.82,0.00019999,2]
[362285573,1748157045257,-2029.82,0.00019999,2]
[362285574,1748157045266,-2029.82,0.00019999,2]
[362285575,1748157045275,-2029.82,0.00019999,2]
[362285576,1748157045284,-439.21901587,0.00019999,2]
[362285577,1748157045295,-2029.82,0.00019999,2]
[362285578,1748157045304,-2029.82,0.00019999,2]
[362285579,1748157045315,-2029.82,0.00019999,2]
[362285580,1748157045325,-420.0,0.00019999,2]
[362285581,1748157045334,-2029.82,0.00019999,2]
[362285582,1748157045344,-471.79547954,0.00019999,2]
[362285583,1748157045354,-2029.82,0.00019999,2]
[362285584,1748157045364,-2029.82,0.00019999,2]
[362285585,1748157045373,-2029.82,0.00019999,2]
[362285586,1748157045382,-2029.82,0.00019999,2]
[362285587,1748157045391,-2029.82,0.00019999,2]
[362285588,1748157045401,-2029.82,0.00019999,2]
[362285589,1748157045411,-2029.82,0.00019999,2]
[362285590,1748157045420,-2029.82,0.00019999,2]
[362285591,1748157045429,-420.0,0.00019999,2]
[362285592,1748157045438,-437.65497242,0.00019999,2]
[362285593,1748157045447,-2029.9955,0.00019999,2]
[362285594,1748157045456,-375.79548169,0.00019999,2]
[362285595,1748157045465,-465.95839544,0.00019999,2]
[362285596,1748157045474,-420.0,0.00019999,2]
[362285597,1748157045484,-420.0,0.00019999,2]
[362285598,1748157045493,-420.0,0.00019999,2]
[362285599,1748157045502,-733.53,0.00019999,2]
[362285600,1748157045511,-733.53,0.00019999,2]
[362285601,1748157045520,-733.53,0.00019999,2]
[362285602,1748157045530,-733.53,0.00019999,2]
[362285603,1748157045541,-733.53,0.00019999,2]
[362285604,1748157045550,-733.53,0.00019999,2]
[362285605,1748157045562,-420.0,0.00019999,2]
[362285606,1748157045571,-733.53,0.00019999,2]
[362285607,1748157045581,-733.53,0.00019999,2]
[362285608,1748157045590,-733.53,0.00019999,2]
[362285609,1748157045600,-733.53,0.00019999,2]
[362285610,1748157045610,-733.53,0.00019999,2]
[362285611,1748157045619,-733.53,0.00019999,2]
[362285612,1748157045628,-733.53,0.00019999,2]
[362285613,1748157045637,-733.53,0.00019999,2]
[362285614,1748157045647,-733.53,0.00019999,2]
[362285615,1748157045656,-733.53,0.00019999,2]
[362285616,1748157045665,-733.53,0.00019999,2]
[362285617,1748157045674,-733.53,0.00019999,2]
[362285618,1748157045684,-733.53,0.00019999,2]
[362285619,1748157045693,-733.53,0.00019999,2]
[362285620,1748157045702,-733.53,0.00019999,2]
[362285621,1748157045711,-733.53,0.00019999,2]
[362285622,1748157045721,-733.73,0.00019999,2]
[362285623,1748157045730,-19850.0,0.00019999,2]
[362285624,1748157045739,-279.71252305,0.0002,2]
[362285625,1748157045749,-255625.07002469,0.0002,2]
[362286553,1748157293871,379.96,0.00013699,2]
[362286568,1748157525142,866.87402807,0.00019,2]
[362286569,1748157544294,10000.0,0.00023,30]
[362286582,1748157592244,5245.03,0.00025,60]
[362286583,1748157605525,566.71,0.00019,2]
[362286584,1748157607761,289.45909673,0.00019,2]
[362286586,1748157623776,5245.0,0.00025,60]
[362286610,1748157953926,777.25614608,6.94e-05,2]
[362286611,1748157953949,3950.80646778,6.94e-05,2]
[362286612,1748157961849,49.19353222,8e-05,2]
[362286613,1748157961871,1100.10639149,8e-05,2]
[362286725,1748158040121,-434.96,0.00017075,2]
[362286726,1748158040143,-231.31144875,0.00018954,2]
[362286728,1748158074973,2596.92005534,0.00015,2]
[362286730,1748158088495,302.97355317,7.945e-05,2]
[362286731,1748158088517,2175.10540783,7.945e-05,2]
[362286736,1748158119971,802.81504275,0.00013368,2]
[362286754,1748158232012,-1000.0,0.00018878,2]
[362286756,1748158232022,-2093.8144012,0.00018902,2]
[362286761,1748158232168,-6350.81096051,0.00018902,2]
[362286762,1748158232255,-329.75,0.00018902,2]
[362286763,1748158232268,-515.39383253,0.00018902,2]
[362286764,1748158232279,-1962.0214557,0.00018902,2]
[362286765,1748158232292,-757.55051937,0.00018902,2]
[362286766,1748158232321,-11890.65883069,0.00018902,2]
[362286767,1748158232330,-1653.66855125,0.00018954,2]
[362286768,1748158232340,-150.0,0.00018954,7]
[362286769,1748158232350,-498.88,0.00018959,2]
[362286770,1748158232360,-277.25090327,0.00019,2]
[362286771,1748158232370,-566.71,0.00019,2]
[362286772,1748158232379,-1381.83,0.00019,2]
[362286773,1748158232388,-1381.83,0.00019,2]
[362286774,1748158232397,-1381.83,0.00019,2]
[362286775,1748158232407,-552.73,0.00019,2]
[362286776,1748158232416,-2751.0,0.00019001,2]
[362286777,1748158232425,-150.0,0.00019245,2]
[362286778,1748158232435,-434.96,0.00019339,2]
[362286779,1748158232444,-1051.2,0.000194,2]
[362286780,1748158232456,-916.68,0.000194,2]
[362286781,1748158232465,-1006.54702506,0.0001948,2]
[362286782,1748158232475,-908.38,0.00019589,2]
[362286783,1748158232487,-181.70852,0.00019599,2]
[362286784,1748158232496,-1182.91216091,0.00019873,2]
[362286785,1748158232505,-207.4,0.00019886,2]
[362286786,1748158232514,-2076.5394,0.00019896,2]
[362286787,1748158232523,-2500.0,0.00019896,2]
[362286788,1748158232533,-500.78817947,0.00019896,2]
[362286789,1748158232542,-500.78817945,0.00019896,2]
[362286790,1748158232551,-500.78817945,0.00019897,2]
[362286791,1748158232561,-500.78817945,0.00019897,2]
[362286792,1748158232570,-500.78817945,0.00019898,2]
[362286793,1748158232579,-1000.0,0.00019898,2]
[362286794,1748158232589,-500.78817945,0.00019898,2]
[362286795,1748158232598,-500.78817945,0.00019899,2]
[362286796,1748158232607,-1198.8506,0.00019899,2]
[362286797,1748158232616,-1000.0,0.00019899,2]
[362286798,1748158232625,-160.40472885,0.00019899,2]
[362286799,1748158232634,-500.78817945,0.00019899,2]
[362286800,1748158232643,-500.78817945,0.000199,2]
[362286801,1748158232653,-1093.4261,0.000199,2]
[362286802,1748158232662,-500.78817945,0.000199,2]
[362286803,1748158232672,-685.53361844,0.000199,2]
[362286804,1748158232681,-5056.87129876,0.000199,2]
[362286805,1748158232690,-1077.0,0.00019937,2]
[362286806,1748158232699,-651.62695407,0.00019986,2]
[362286807,1748158232710,-681.445,0.00019995,2]
[362286808,1748158232719,-489.51010137,0.00019995,2]
[362286809,1748158232728,-443.32037852,0.00019995,2]
[362286810,1748158232737,-420.0,0.00019995,2]
[362286811,1748158232746,-420.0,0.00019995,2]
[362286812,1748158232755,-420.0,0.00019995,2]
[362286813,1748158232764,-375.79548169,0.00019995,2]
[362286814,1748158232774,-465.95839544,0.00019995,2]
[362286815,1748158232783,-420.0,0.00019995,2]
[362286816,1748158232792,-440.64326212,0.00019995,2]
[362286817,1748158232801,-420.0,0.00019995,2]
[362286818,1748158232810,-644.32332596,0.00019996,2]
[362286819,1748158233256,-23301.25113307,0.00019996,2]
[362286820,1748158233272,-1104.3,0.00019996,2]
[362286821,1748158233284,-21475.0,0.00019996,2]
[362286822,1748158233295,-1069.15373533,0.00019996,2]
[362286880,1748158237927,-493.03166384,0.00019996,2]
[362286887,1748158238011,-6830.10334898,0.00019996,2]
[362286888,1748158238022,-776.78231321,0.00019996,2]
[362286891,1748158238097,-440.22069117,0.00019996,2]
[362286892,1748158238182,-1375.39130201,0.00019996,2]
[362286915,1748158240249,-97530.82126783,0.00019996,2]
[362286916,1748158240259,-7548.3815403,0.00019996,2]
[362286917,1748158240268,-12113.4462245,0.00019996,2]
[362286918,1748158240278,-420.0,0.00019997,2]
[362286919,1748158240287,-500.0,0.00019998,2]
[362286920,1748158240297,-420.0,0.00019998,2]
[362286921,1748158240306,-420.0,0.00019998,2]
[362286922,1748158240315,-420.0,0.00019998,2]
[362286923,1748158240325,-420.0,0.00019998,2]
[362286924,1748158240334,-448.71674003,0.00019998,2]
[362286925,1748158240343,-420.0,0.00019998,2]
[362286926,1748158240353,-420.0,0.00019998,2]
[362286927,1748158240362,-420.0,0.00019998,2]
[362286928,1748158240371,-420.0,0.00019998,2]
[362286929,1748158240380,-435.98030907,0.00019998,2]
[362286930,1748158240389,-420.0,0.00019998,2]
[362286931,1748158240398,-420.0,0.00019998,2]
[362286932,1748158240407,-420.0,0.00019998,2]
[362286933,1748158240416,-420.0,0.00019998,2]
[362286934,1748158240426,-420.0,0.00019998,2]
[362286935,1748158240434,-420.0,0.00019998,2]
[362286936,1748158240444,-420.0,0.00019998,2]
[362286937,1748158240453,-420.0,0.00019998,2]
[362286938,1748158240462,-420.0,0.00019998,2]
[362286939,1748158240471,-429.58423987,0.00019998,2]
[362286940,1748158240482,-420.0,0.00019998,2]
[362286941,1748158240492,-420.0,0.00019998,2]
[362286942,1748158240501,-420.0,0.00019998,2]
[362286943,1748158240510,-420.0,0.00019998,2]
[362286944,1748158240519,-1920.38,0.00019998,2]
[362286945,1748158240528,-420.0,0.00019998,2]
[362286946,1748158240537,-420.0,0.00019998,2]
[362286947,1748158240547,-420.0,0.00019998,2]
[362286948,1748158240557,-420.0,0.00019998,2]
[362286949,1748158240566,-702.97,0.00019998,2]
[362286950,1748158240576,-420.0,0.00019998,2]
[362286951,1748158240585,-421.8,0.00019998,2]
[362286952,1748158240594,-420.0,0.00019998,2]
[362286953,1748158240603,-420.0,0.00019998,2]
[362286954,1748158240612,-420.0,0.00019998,2]
[362286955,1748158240621,-420.0,0.00019998,2]
[362286956,1748158240631,-430.57902534,0.00019998,2]
[362286957,1748158240640,-420.0,0.00019998,2]
[362286958,1748158240649,-420.0,0.00019998,2]
[362286959,1748158240659,-420.0,0.00019998,2]
[362286960,1748158240668,-420.0,0.00019998,2]
[362286961,1748158240677,-420.0,0.00019998,2]
[362286962,1748158240686,-420.0,0.00019998,2]
[362286963,1748158240695,-420.0,0.00019998,2]
[362286964,1748158240708,-420.0,0.00019998,2]
[362286965,1748158240717,-420.0,0.00019998,2]
[362286966,1748158240726,-420.0,0.00019998,2]
[362286967,1748158240735,-420.0,0.00019998,2]
[362286968,1748158240745,-420.0,0.00019998,2]
[362286969,1748158240754,-420.0,0.00019998,2]
[362286970,1748158240763,-420.0,0.00019998,2]
[362286971,1748158240772,-420.0,0.00019998,2]
[362286972,1748158240781,-420.0,0.00019998,2]
[362286973,1748158240791,-420.0,0.00019998,2]
[362286974,1748158240800,-420.0,0.00019998,2]
[362286975,1748158240809,-420.0,0.00019998,2]
[362286976,1748158240818,-420.0,0.00019998,2]
[362286977,1748158240827,-420.0,0.00019998,2]
[362286978,1748158240837,-420.0,0.00019998,2]
[362286979,1748158240846,-420.0,0.00019998,2]
[362286980,1748158240855,-420.0,0.00019998,2]
[362286981,1748158240865,-1945.25,0.00019998,2]
[362286982,1748158240874,-793.27,0.00019998,2]
[362286983,1748158240883,-420.0,0.00019998,2]
[362286985,1748158240892,-420.0,0.00019998,2]
[362286987,1748158240901,-261.302275,0.00019998,2]
[362286989,1748158240910,-420.0,0.00019998,2]
[362286991,1748158240919,-420.0,0.00019998,2]
[362286993,1748158240928,-162.60475566,0.00019998,2]
[362286995,1748158240938,-420.0,0.00019999,2]
[362286997,1748158240947,-230.37541697,0.00019999,2]
[362286998,1748158240957,-2869.45068177,0.00019999,2]
[362286999,1748158240966,-420.0,0.00019999,2]
[362287000,1748158240975,-420.0,0.00019999,2]
[362287001,1748158240984,-420.0,0.00019999,2]
[362287002,1748158240993,-332.74704792,0.00019999,2]
[362287003,1748158241003,-471.79547954,0.00019999,2]
[362287004,1748158241012,-437.65497242,0.00019999,2]
[362287005,1748158241021,-420.0,0.00019999,2]
[362287006,1748158241030,-530.9905292,0.00019999,2]
[362287007,1748158241039,-389.26763414,0.00019999,2]
[362287008,1748158241048,-420.0,0.00019999,2]
[362287009,1748158241057,-420.0,0.00019999,2]
[362287010,1748158241066,-420.0,0.00019999,2]
[362287011,1748158241075,-420.0,0.00019999,2]
[362287012,1748158241085,-420.0,0.00019999,2]
[362287013,1748158241094,-420.0,0.00019999,2]
[362287014,1748158241103,-420.0,0.00019999,2]
[362287015,1748158241112,-420.0,0.00019999,2]
[362287016,1748158241121,-420.0,0.00019999,2]
[362287017,1748158241131,-420.0,0.00019999,2]
[362287018,1748158241139,-420.0,0.00019999,2]
[362287019,1748158241149,-420.0,0.00019999,2]
[362287020,1748158241158,-420.0,0.00019999,2]
[362287021,1748158241167,-155.34,0.00019999,2]
[362287022,1748158241176,-518.83467523,0.00019999,2]
[362287023,1748158241185,-420.0,0.00019999,2]
[362287024,1748158241195,-420.0,0.00019999,2]
[362287025,1748158241203,-451.39949907,0.00019999,2]
[362287026,1748158241214,-420.0,0.00019999,2]
[362287027,1748158241223,-400.05,0.00019999,2]
[362287028,1748158241232,-150.0,0.00019999,2]
[362287029,1748158241241,-420.0,0.00019999,2]
[362287030,1748158241250,-438.78518821,0.00019999,2]
[362287031,1748158241259,-428.02686963,0.00019999,2]
[362287032,1748158241268,-420.0,0.00019999,2]
[362287033,1748158241278,-432.71895564,0.00019999,2]
[362287034,1748158241287,-438.50342252,0.00019999,2]
[362287035,1748158241297,-426.43581604,0.00019999,2]
[362287036,1748158241307,-439.21901587,0.00019999,2]
[362287037,1748158241317,-446.42510084,0.00019999,2]
[362287038,1748158241326,-431.7832956,0.00019999,2]
[362287039,1748158241335,-420.0,0.00019999,2]
[362287040,1748158241344,-420.0,0.00019999,2]
[362287041,1748158241354,-420.0,0.00019999,2]
[362287042,1748158241363,-420.0,0.00019999,2]
[362287043,1748158241373,-420.0,0.00019999,2]
[362287044,1748158241382,-420.0,0.00019999,2]
[362287045,1748158241391,-420.0,0.00019999,2]
[362287046,1748158241400,-440.88843868,0.00019999,2]
[362287047,1748158241409,-420.0,0.00019999,2]
[362287048,1748158241419,-422.45179239,0.00019999,2]
[362287049,1748158241428,-427.208372,0.00019999,2]
[362287050,1748158241437,-420.0,0.00019999,2]
[362287051,1748158241446,-421.93000369,0.00019999,2]
[362287052,1748158241457,-422.88852738,0.00019999,2]
[362287053,1748158241466,-420.0,0.00019999,2]
[362287054,1748158241479,-422.57146821,0.00019999,2]
[362287055,1748158241488,-447.47902066,0.00019999,2]
[362287056,1748158241498,-436.51602788,0.00019999,2]
[362287057,1748158241507,-420.0,0.00019999,2]
[362287058,1748158241518,-1920.38,0.00019999,2]
[362287059,1748158241528,-1920.38,0.00019999,2]
[362287060,1748158241537,-1920.38,0.00019999,2]
[362287061,1748158241546,-1920.38,0.00019999,2]
[362287062,1748158241556,-1920.38,0.00019999,2]
[362287063,1748158241565,-1920.38,0.00019999,2]
[362287064,1748158241574,-1920.38,0.00019999,2]
[362287065,1748158241584,-1920.38,0.00019999,2]
[362287066,1748158241593,-1920.38,0.00019999,2]
[362287067,1748158241602,-1920.38,0.00019999,2]
[362287068,1748158241611,-1920.38,0.00019999,2]
[362287069,1748158241620,-1920.38,0.00019999,2]
[362287070,1748158241629,-1920.38,0.00019999,2]
[362287071,1748158241638,-1920.38,0.00019999,2]
[362287072,1748158241648,-1920.38,0.00019999,2]
[362287073,1748158241657,-1920.38,0.00019999,2]
[362287074,1748158241666,-1920.38,0.00019999,2]
[362287075,1748158241675,-1920.38,0.00019999,2]
[362287076,1748158241685,-1920.38,0.00019999,2]
[362287077,1748158241694,-1920.38,0.00019999,2]
[362287078,1748158241703,-1920.38,0.00019999,2]
[362287079,1748158241714,-1920.38,0.00019999,2]
[362287080,1748158241723,-1920.40273821,0.00019999,2]
[362287081,1748158241733,-420.0,0.00019999,2]
[362287082,1748158241742,-420.0,0.00019999,2]
[362287083,1748158241753,-420.0,0.00019999,2]
[362287084,1748158241762,-420.0,0.00019999,2]
[362287085,1748158241772,-420.0,0.00019999,2]
[362287086,1748158241782,-420.0,0.00019999,2]
[362287087,1748158241792,-420.0,0.00019999,2]
[362287088,1748158241803,-420.0,0.00019999,2]
[362287089,1748158241813,-420.0,0.00019999,2]
[362287090,1748158241823,-420.0,0.00019999,2]
[362287091,1748158241833,-420.0,0.00019999,2]
[362287092,1748158241843,-228.77580241,0.00019999,2]
[362287093,1748158241852,-702.97,0.00019999,2]
[362287094,1748158241863,-702.97,0.00019999,2]
[362287095,1748158241872,-702.97,0.00019999,2]
[362287096,1748158241881,-702.97,0.00019999,2]
[362287097,1748158241890,-702.97,0.00019999,2]
[362287098,1748158241899,-702.97,0.00019999,2]
[362287099,1748158241908,-702.97,0.00019999,2]
[362287100,1748158241917,-702.97,0.00019999,2]
[362287101,1748158241927,-702.97,0.00019999,2]
[362287102,1748158241935,-702.97,0.00019999,2]
[362287103,1748158241945,-702.97,0.00019999,2]
[362287104,1748158241955,-702.97,0.00019999,2]
[362287105,1748158241964,-702.97,0.00019999,2]
[362287106,1748158241974,-702.97,0.00019999,2]
[362287107,1748158241983,-702.97,0.00019999,2]
[362287108,1748158241991,-702.97,0.00019999,2]
[362287109,1748158242000,-702.97,0.00019999,2]
[362287110,1748158242010,-702.97,0.00019999,2]
[362287111,1748158242019,-420.0,0.00019999,2]
[362287112,1748158242029,-702.97,0.00019999,2]
[362287113,1748158242038,-702.97,0.00019999,2]
[362287114,1748158242047,-420.0,0.00019999,2]
[362287115,1748158242059,-420.0,0.00019999,2]
[362287116,1748158242068,-702.97,0.00019999,2]
[362287117,1748158242077,-316.35,0.00019999,2]
[362287118,1748158242086,-702.97,0.00019999,2]
[362287119,1748158242095,-703.08,0.00019999,2]
[362287120,1748158242104,-421.8,0.00019999,2]
[362287121,1748158242113,-421.8,0.00019999,2]
[362287122,1748158242122,-421.8,0.00019999,2]
[362287123,1748158242131,-421.8,0.00019999,2]
[362287124,1748158242140,-421.8,0.00019999,2]
[362287125,1748158242150,-421.8,0.00019999,2]
[362287126,1748158242160,-421.8,0.00019999,2]
[362287127,1748158242169,-421.8,0.00019999,2]
[362287128,1748158242179,-421.8,0.00019999,2]
[362287129,1748158242188,-421.8,0.00019999,2]
[362287130,1748158242198,-2845.2336507,0.00019999,2]
[362287131,1748158242207,-421.8,0.00019999,2]
[362287132,1748158242217,-421.8,0.00019999,2]
[362287133,1748158242227,-421.8,0.00019999,2]
[362287134,1748158242236,-421.8,0.00019999,2]
[362287135,1748158242245,-421.8,0.00019999,2]
[362287136,1748158242254,-421.8,0.00019999,2]
[362287137,1748158242264,-421.8,0.00019999,2]
[362287138,1748158242273,-421.8,0.00019999,2]
[362287139,1748158242282,-421.8,0.00019999,2]
[362287140,1748158242292,-421.8,0.00019999,2]
[362287141,1748158242302,-421.8,0.00019999,2]
[362287142,1748158242311,-421.8,0.00019999,2]
[362287143,1748158242320,-421.9770365,0.00019999,2]
[362287144,1748158242330,-420.0,0.00019999,2]
[362287145,1748158242339,-420.0,0.00019999,2]
[362287146,1748158242348,-420.0,0.00019999,2]
[362287147,1748158242358,-420.0,0.00019999,2]
[362287148,1748158242368,-420.0,0.00019999,2]
[362287149,1748158242377,-420.0,0.00019999,2]
[362287150,1748158242387,-420.0,0.00019999,2]
[362287151,1748158242396,-420.0,0.00019999,2]
[362287152,1748158242405,-420.0,0.00019999,2]
[362287153,1748158242414,-420.0,0.00019999,2]
[362287154,1748158242423,-420.0,0.00019999,2]
[362287155,1748158242432,-420.0,0.00019999,2]
[362287156,1748158242442,-420.0,0.00019999,2]
[362287157,1748158242451,-385.79832154,0.00019999,2]
[362287158,1748158242462,-420.0,0.00019999,2]
[362287159,1748158242472,-564.96,0.00019999,2]
[362287160,1748158242485,-420.0,0.00019999,2]
[362287161,1748158242494,-420.0,0.00019999,2]
[362287162,1748158242503,-420.0,0.00019999,2]
[362287163,1748158242512,-420.0,0.00019999,2]
[362287164,1748158242521,-372.36,0.00019999,2]
[362287165,1748158242530,-420.0,0.00019999,2]
[362287166,1748158242539,-420.0,0.00019999,2]
[362287167,1748158242549,-420.0,0.00019999,2]
[362287168,1748158242558,-420.0,0.00019999,2]
[362287169,1748158242567,-254.73874387,0.00019999,2]
[362287170,1748158242576,-420.0,0.00019999,2]
[362287171,1748158242585,-420.0,0.00019999,2]
[362287172,1748158242595,-420.0,0.00019999,2]
[362287173,1748158242604,-420.0,0.00019999,2]
[362287174,1748158242613,-420.0,0.00019999,2]
[362287175,1748158242622,-420.0,0.00019999,2]
[362287176,1748158242631,-420.0,0.00019999,2]
[362287177,1748158242640,-420.0,0.00019999,2]
[362287178,1748158242649,-420.0,0.00019999,2]
[362287179,1748158242658,-234.62224462,0.00019999,2]
[362287180,1748158242668,-420.0,0.00019999,2]
[362287181,1748158242676,-420.0,0.00019999,2]
[362287182,1748158242686,-491.35,0.00019999,2]
[362287183,1748158242695,-420.0,0.00019999,2]
[362287184,1748158242704,-420.0,0.00019999,2]
[362287185,1748158242714,-420.0,0.00019999,2]
[362287186,1748158242723,-420.0,0.00019999,2]
[362287187,1748158242733,-420.0,0.00019999,2]
[362287188,1748158242743,-420.0,0.00019999,2]
[362287189,1748158242752,-420.0,0.00019999,2]
[362287190,1748158242761,-420.0,0.00019999,2]
[362287191,1748158242770,-420.0,0.00019999,2]
[362287192,1748158242779,-420.0,0.00019999,2]
[362287193,1748158242788,-420.0,0.00019999,2]
[362287194,1748158242798,-420.0,0.00019999,2]
[362287195,1748158242807,-420.0,0.00019999,2]
[362287196,1748158242817,-420.0,0.00019999,2]
[362287197,1748158242826,-279.18,0.00019999,2]
[362287198,1748158242835,-252.90102083,0.00019999,5]
[362287199,1748158242844,-420.0,0.00019999,2]
[362287200,1748158242854,-420.0,0.00019999,2]
[362287201,1748158242863,-420.0,0.00019999,2]
[362287202,1748158242872,-420.0,0.00019999,2]
[362287203,1748158242881,-420.0,0.00019999,2]
[362287204,1748158242890,-420.0,0.00019999,2]
[362287205,1748158242899,-420.0,0.00019999,2]
[362287206,1748158242908,-420.0,0.00019999,2]
[362287207,1748158242917,-420.0,0.00019999,2]
[362287208,1748158242926,-420.0,0.00019999,2]
[362287209,1748158242935,-420.0,0.00019999,2]
[362287211,1748158242944,-420.0,0.00019999,2]
[362287213,1748158242953,-420.0,0.00019999,2]
[362287216,1748158242964,-420.0,0.00019999,2]
[362287219,1748158242974,-420.0,0.00019999,2]
[362287222,1748158242983,-420.0,0.00019999,2]
[362287224,1748158242992,-420.0,0.00019999,2]
[362287226,1748158243001,-420.0,0.00019999,2]
[362287227,1748158243010,-420.0,0.00019999,2]
[362287228,1748158243019,-420.0,0.00019999,2]
[362287230,1748158243028,-234.76,0.00019999,2]
[362287231,1748158243037,-420.0,0.00019999,2]
[362287232,1748158243047,-420.0,0.00019999,2]
[362287233,1748158243056,-420.0,0.00019999,2]
[362287234,1748158243066,-420.0,0.00019999,2]
[362287235,1748158243075,-420.0,0.00019999,2]
[362287236,1748158243084,-420.0,0.00019999,2]
[362287237,1748158243093,-420.0,0.00019999,2]
[362287238,1748158243102,-420.0,0.00019999,2]
[362287239,1748158243111,-420.0,0.00019999,2]
[362287240,1748158243121,-420.0,0.00019999,2]
[362287241,1748158243130,-420.0,0.00019999,2]
[362287242,1748158243139,-420.0,0.00019999,2]
[362287243,1748158243148,-371.94,0.00019999,2]
[362287244,1748158243158,-420.0,0.00019999,2]
[362287245,1748158243167,-420.0,0.00019999,2]
[362287246,1748158243180,-420.0,0.00019999,2]
[362287247,1748158243190,-420.0,0.00019999,2]
[362287248,1748158243199,-343.96539659,0.00019999,2]
[362287249,1748158243209,-420.0,0.00019999,2]
[362287250,1748158243219,-420.0,0.00019999,2]
[362287251,1748158243228,-420.0,0.00019999,2]
[362287252,1748158243238,-420.0,0.00019999,2]
[362287253,1748158243247,-420.0,0.00019999,2]
[362287254,1748158243257,-420.0,0.00019999,2]
[362287255,1748158243266,-420.0,0.00019999,2]
[362287256,1748158243275,-420.0,0.00019999,2]
[362287257,1748158243284,-152.13,0.00019999,2]
[362287258,1748158243294,-420.0,0.00019999,2]
[362287259,1748158243303,-420.0,0.00019999,2]
[362287260,1748158243312,-478.32476375,0.00019999,2]
[362287261,1748158243322,-499.46,0.00019999,2]
[362287262,1748158243331,-420.0,0.00019999,2]
[362287263,1748158243341,-420.0,0.00019999,2]
[362287264,1748158243350,-420.0,0.00019999,2]
[362287265,1748158243359,-420.0,0.00019999,2]
[362287266,1748158243369,-1945.25,0.00019999,2]
[362287267,1748158243378,-1945.25,0.00019999,2]
[362287268,1748158243388,-1945.25,0.00019999,2]
[362287269,1748158243397,-1945.25,0.00019999,2]
[362287270,1748158243406,-1945.25,0.00019999,2]
[362287271,1748158243416,-1945.25,0.00019999,2]
[362287272,1748158243425,-1945.25,0.00019999,2]
[362287273,1748158243435,-1945.25,0.00019999,2]
[362287274,1748158243444,-1945.25,0.00019999,2]
[362287275,1748158243453,-1945.25,0.00019999,2]
[362287276,1748158243465,-1945.25,0.00019999,2]
[362287277,1748158243477,-1945.25,0.00019999,2]
[362287278,1748158243486,-793.27,0.00019999,2]
[362287279,1748158243496,-1945.25,0.00019999,2]
[362287280,1748158243505,-793.27,0.00019999,2]
[362287281,1748158243515,-1945.25,0.00019999,2]
[362287282,1748158243524,-793.27,0.00019999,2]
[362287283,1748158243533,-1945.25,0.00019999,2]
[362287284,1748158243543,-793.27,0.00019999,2]
[362287285,1748158243553,-1945.25,0.00019999,2]
[362287286,1748158243563,-793.27,0.00019999,2]
[362287287,1748158243572,-1945.25,0.00019999,2]
[362287288,1748158243581,-793.27,0.00019999,2]
[362287289,1748158243590,-1945.25,0.00019999,2]
[362287290,1748158243599,-1945.25,0.00019999,2]
[362287291,1748158243608,-793.27,0.00019999,2]